[Event "4NCL 2022-2023"]
[Site "Daventry"]
[Date "2023.02.11"]
[Round "5.43"]
[White "Harvey, Marcus R"]
[Black "Thorarinsson, Pall A."]
[Result "1-0"]
[ECO "B38"]
[WhiteElo "2471"]
[BlackElo "2169"]
[Annotator "TA"]
[PlyCount "185"]
[EventDate "2022.10.20"]
[EventType "team-tourn"]
[EventCountry "ENG"]
[SourceTitle "playchess.com"]
[Source "ChessBase"]
[SourceQuality "1"]
[TimeControl "40/6000+30:2400+30"]

{[%evp 26,185,37,40,54,39,35,27,47,16,35,33,45,43,44,33,55,35,42,36,30,35,30,32,44,40,53,40,47,-12,-12,-12,-12,-19,-21,-37,-11,-37,0,-37,-37,-37,-37,-77,-72,-94,-95,-92,-87,-104,-102,-97,-100,-81,-31,-39,-41,-36,-9,-34,-23,-19,-11,-50,-33,-70,-70,-102,-100,-118,-118,-118,-117,-115,-117,-115,-117,-120,-75,-129,-129,-129,-129,-129,-129,-155,-126,-127,-128,-147,-150,-141,-127,-175,-71,-118,-31,-127,0,0,0,0,0,0,0,0,0,0,0,0,0,0,0,0,0,0,0,0,0,0,0,0,0,0,0,0,0,0,0,0,0,0,0,0,0,0,0,0,12831,0,12834,1177,12835,12835,12836,12836,12840,12840,12841,12841,12841,12842,12844,12844,12845,12845,12845,12846,12846,12847,12847,12847]} 1. c4 {[%emt 0:04:17]} c5 {[%emt 0:01:04]} 2. Nf3 {[%emt 0:00:15]} g6 {[%emt 0:01:16]} 3. d4 {[%emt 0:02:43]} cxd4 {[%emt 0:00:52]} 4. Nxd4 {[%emt 0:00:02]} Bg7 {[%emt 0:01:26]} 5. e4 {[%emt 0:00:33]} Nc6 {[%emt 0:04:24]} 6. Be3 {[%emt 0:00:05]} Nf6 {[%emt 0:00:31]} 7. Nc3 {[%emt 0:00:03]} d6 {[%emt 0:00:17]} 8. Be2 {[%emt 0:00:10]} O-O {[%emt 0:00:13]} 9. O-O {[%emt 0:00:46]} Nxd4 {[%emt 0:01:48]} 10. Bxd4 {[%emt 0:00:44]} Bd7 {[%emt 0:00:12]} 11. Qd2 {[%emt 0:04:42]} Bc6 {[%emt 0:05:11]} 12. f3 {[%emt 0:01:07]} a5 {[%emt 0:00:32]} 13. Rfd1 {[%emt 0:00:57]} Nd7 {[%emt 0:05:50]} 14. Be3 {[%emt 0:01:02]} Nc5 {[%emt 0:04:12] B38: Sicilian: Maroczy Bind with 5...Bg7 and 7...0-0.} 15. Rac1 {[%emt 0:00:41]} a4 {[%emt 0:10:58]} 16. Rc2 {[%emt 0:06:11]} Qa5 {[%emt 0:16:45] White has an edge.} 17. Rb1 {[%emt 0:07:03]} Rfc8 {[%emt 0:17:04]} 18. Bf1 {[%emt 0:15:45] [#]} Kf8 $146 {[%emt 0:06:05]} ({Predecessor:} 18... Qd8 19. Qf2 Qf8 20. Re1 Na6 21. Bg5 h6 22. Be3 Bf6 23. Qd2 h5 24. Bf2 e6 {1-0 Misailovic,N (2306)-Brkljaca,A (2322) SRB-chT2 West 2013 (3)}) 19. Qf2 {[%emt 0:02:35]} Kg8 {[%emt 0:06:33]} 20. Kh1 {[%emt 0:03:30]} Qb4 {[%emt 0:05:32]} 21. Bd2 {[%emt 0:00:39]} Qa5 {[%emt 0:04:52]} 22. Qh4 {[%emt 0:05:36]} Bf6 {[%emt 0:02:32]} 23. Qe1 {[%emt 0:00:06]} Qd8 {[%emt 0:02:15]} 24. Be3 {[%emt 0:06:26]} Qa5 {[%emt 0:03:51]} 25. Rbc1 {[%emt 0:04:55]} Ne6 {[%emt 0:04:50]} 26. Qd2 {[%emt 0:03:19]} h5 {[%emt 0:01:02]} 27. Bd3 {[%emt 0:05:22]} ({White should play} 27. Nd5 $14) 27... Nd4 $11 {[%emt 0:00:35]} 28. Bxd4 {[%emt 0:03:46]} Bxd4 {[%emt 0:00:01]} 29. Re1 {[%emt 0:00:35]} h4 {[%emt 0:01:27]} 30. a3 {[%emt 0:03:04]} Bg7 {[%emt 0:01:23][%cal Oh4h3]} (30... b5 $5) 31. Qf2 {[%emt 0:01:25]} Qh5 {[%emt 0:00:52]} 32. Ne2 {[%emt 0:01:15]} Qh8 {[%emt 0:00:52]} 33. Rb1 {[%emt 0:01:05]} Ra5 {[%emt 0:00:31]} 34. Nf4 {[%emt 0:00:25]} Be5 {[%emt 0:00:28] A strong pair of Bishops.} 35. Nd5 {[%emt 0:00:41]} Bxd5 {[%emt 0:00:15]} 36. exd5 {[%emt 0:00:06]} Qf6 $1 {[%emt 0:00:35][%cal Ob7b5]} 37. Qe3 {[%emt 0:02:11]} Rac5 {[%emt 0:00:39][%cal Ob7b5]} 38. Re2 {[%emt 0:00:21][%cal Of3f4]} R8c7 {[%emt 0:00:59]} 39. Qe4 {[%emt 0:01:40]} Qf4 {[%emt 0:00:30]} ({Better is} 39... Qg5 $17) 40. Qxf4 $15 {[%emt 0:00:46]} Bxf4 {[%emt 0:00:01][%cal Be5f4,Bf4g5,Bg5f6][%mdl 32]} 41. Re4 {[%emt 0:41:50]} Bg5 {[%emt 0:40:31]} 42. Kg1 {[%emt 0:04:18]} Bf6 {[%emt 0:00:00]} 43. Kf2 {[%emt 0:00:00]} Rc8 {[%emt 0:00:00]} 44. Rbe1 {[%emt 0:00:00]} Kf8 {[%emt 0:00:00]} 45. R1e2 {[%emt 0:00:00]} Ra8 {[%emt 0:00:00]} 46. Rc2 {[%emt 0:00:00]} Ra6 $1 {[%emt 0:00:00]} 47. Bf1 {[%emt 0:00:00]} Rb6 {[%emt 0:00:00]} 48. Ree2 {[%emt 0:00:00] White is weak on the dark squares} Bd4+ {[%emt 0:00:00]} 49. Ke1 {[%emt 0:00:00]} Be5 {[%emt 0:00:00]} 50. h3 {[%emt 0:00:00]} Rb3 {[%emt 0:00:00]} 51. Kd1 {[%emt 0:00:00]} Bf4 {[%emt 0:00:00]} 52. Re4 {[%emt 0:00:00]} (52. Rc3 $142) 52... g5 $17 {[%emt 0:00:00][%cal Ob7b5]} 53. Rd4 {[%emt 0:00:00]} Be5 {[%emt 0:00:00]} 54. Rdd2 {[%emt 0:00:00]} Kg7 {[%emt 0:00:00]} 55. Re2 {[%emt 0:00:00]} b5 {[%emt 0:00:00]} 56. cxb5 {[%emt 0:00:00]} Rcxb5 {[%emt 0:00:00]} 57. Rxe5 {[%emt 0:00:00][%mdl 64] Discovered Attack} dxe5 {[%emt 0:00:00]} 58. Bxb5 {[%emt 0:00:00]} Rxb5 {[%emt 0:00:00][%mdl 4096] Endgame KR-KR} 59. Rd2 {[%emt 0:00:00]} (59. Re2 $17 {was worth a try.}) 59... f5 {[%emt 0:00:00]} (59... Kf6 $19 {has better winning chances.} 60. d6 exd6 61. Rxd6+ Kf5) 60. Kc2 {[%emt 0:00:00]} (60. Kc1 $142) 60... Rc5+ {[%emt 0:00:00]} (60... Rb3 $1 $17 61. Kc1 Re3) 61. Kb1 {[%emt 0:00:00]} (61. Kd1 $1 $15) 61... Rc4 {[%emt 0:00:00]} ({Black should try} 61... Kf6 $1 $17 {Threatens to win with ...e4.} 62. d6 exd6 63. Rxd6+ Kf7) 62. b3 $11 {[%emt 0:01:03]} axb3 {[%emt 0:02:34]} 63. Kb2 {[%emt 0:00:07]} Rc5 {[%emt 0:05:04]} 64. Kxb3 {[%emt 0:00:40]} e4 {[%emt 0:00:50]} 65. fxe4 {[%emt 0:02:58]} fxe4 {[%emt 0:00:01]} 66. Kb4 {[%emt 0:08:07]} e3 {[%emt 0:00:01]} 67. Rd3 {[%emt 0:02:50]} Rc2 $1 {[%emt 0:04:48]} (67... e2 $2 68. Re3 Rxd5 69. Rxe7+ (69. Rxe2 Rd4+ 70. Kb5 Kf6 $16) 69... Kf8 70. Rxe2 $18) 68. Rxe3 {[%emt 0:00:07]} Rxg2 {[%emt 0:00:26]} 69. Rxe7+ {[%emt 0:00:29]} Kf6 {[%emt 0:00:03]} 70. Re8 {[%emt 0:01:01] Hoping for d6.} Rd2 {[%emt 0:00:46]} 71. Kc5 {[%emt 0:01:49]} Rc2+ {[%emt 0:00:33]} 72. Kb6 {[%emt 0:00:44] Black must now prevent d6.} Rd2 {[%emt 0:00:34]} 73. Kc6 {[%emt 0:03:23] d6 is the strong threat.} Rc2+ {[%emt 0:00:11]} 74. Kb6 {[%emt 0:01:16]} Rd2 {[%emt 0:00:41]} 75. Kc5 {[%emt 0:00:07]} Rc2+ {[%emt 0:00:08]} 76. Kb4 {[%emt 0:00:10]} Rd2 {[%emt 0:01:03]} 77. Kc4 {[%emt 0:00:43] Strongly threatening a4.} Rc2+ {[%emt 0:00:39]} 78. Kd3 {[%emt 0:00:11]} Ra2 {[%emt 0:00:09]} 79. d6 {[%emt 0:00:27] And now d7 would win.} Rxa3+ {[%emt 0:00:25]} 80. Kc4 {[%emt 0:00:05] aiming for d7.} Ra7 {[%emt 0:00:55]} (80... Rxh3 {leads to mate.} 81. d7 Kf5 82. d8=Q (82. d8=R Rg3 $18) 82... Ra3 83. Qd7+ Kf4 84. Qd6+ Kg4 85. Qxa3) 81. Kd5 {[%emt 0:00:38]} Kf7 $2 {[%emt 0:00:41][%mdl 8192]} (81... Ra5+ $11 82. Kc6 Ra6+ 83. Kc5 Ra7) 82. Re3 $2 {[%emt 0:01:03]} (82. Rc8 $18 Kf6 83. Rf8+ Kg7 84. Rc8) 82... Ra5+ $2 {[%emt 0:00:33][%mdl 8192]} (82... g4 $11) 83. Kc6 $18 {[%emt 0:00:08] White is clearly winning.} Ra6+ {[%emt 0:00:11] [#]} 84. Kc7 $1 {[%emt 0:00:08]} Ra7+ {[%emt 0:00:15]} 85. Kb6 {[%emt 0:00:27]} Ra1 {[%emt 0:00:48] [#]} 86. d7 $1 {[%emt 0:00:06]} Rd1 {[%emt 0:00:30]} 87. Kc7 {[%emt 0:00:04]} Rc1+ {[%emt 0:00:06]} 88. Kd8 {[%emt 0:00:05]} Ra1 {[%emt 0:01:03]} 89. Rc3 {[%emt 0:02:20]} Ra8+ {[%emt 0:00:42]} 90. Kc7 {[%emt 0:00:19]} Ra7+ {[%emt 0:00:11]} 91. Kc6 {[%emt 0:00:48]} Ra8 {[%emt 0:00:45]} 92. Kb7 {[%emt 0:00:13]} Rd8 {[%emt 0:00:31]} 93. Kc7 {[%emt 0:00:07] What a bad dream for Black.   Weighted Error Value: White=0.15 (very precise) /Black=0.12 (very precise)} 1-0

[Event "4NCL 2022-2023"]
[Site "Daventry"]
[Date "2023.02.11"]
[Round "5.44"]
[White "Venkatesan, Kavin"]
[Black "Fitzsimons, David"]
[Result "1/2-1/2"]
[ECO "D41"]
[WhiteElo "2184"]
[BlackElo "2342"]
[Annotator "TA"]
[PlyCount "168"]
[EventDate "2022.10.20"]
[EventType "team-tourn"]
[EventCountry "ENG"]
[SourceTitle "playchess.com"]
[Source "ChessBase"]
[SourceQuality "1"]
[TimeControl "40/6000+30:2400+30"]

{[%evp 26,168,18,12,16,0,6,0,0,0,8,0,4,0,26,0,3,0,0,0,0,0,0,0,0,-6,0,0,0,0,0,0,0,0,-13,-40,-44,-55,-60,-56,-46,-64,-12,-8,0,-8,-8,-12,0,-27,0,0,0,0,0,0,0,0,0,-18,-18,-15,-16,-19,-20,-31,-25,-66,-66,-66,-66,-66,-66,-66,-15,-15,-15,-15,-15,-15,-9,-9,-9,-9,-9,-9,-9,-9,-9,-20,-28,-35,-9,-43,0,-9,-9,-43,0,-9,-9,-9,-9,-9,-9,-9,-9,-9,0,0,0,0,0,0,0,0,0,0,0,0,0,0,0,0,0,0,0,0,0,0,0,0,0,0,0,0,0,0,0,0,0,0,0,0,0]} 1. d4 {[%emt 0:00:04]} Nf6 {[%emt 0:00:15]} 2. c4 {[%emt 0:00:06]} e6 {[%emt 0:00:09]} 3. Nc3 {[%emt 0:00:07]} d5 {[%emt 0:00:08]} 4. cxd5 {[%emt 0:00:32]} Nxd5 {[%emt 0:00:08]} 5. e4 {[%emt 0:01:03]} Nxc3 {[%emt 0:00:08]} 6. bxc3 {[%emt 0:00:04]} c5 {[%emt 0:00:09]} 7. Nf3 {[%emt 0:02:26]} cxd4 {[%emt 0:00:11]} 8. cxd4 {[%emt 0:00:08]} Bb4+ {[%emt 0:00:07]} 9. Bd2 {[%emt 0:00:07]} Bxd2+ {[%emt 0:00:09]} 10. Qxd2 {[%emt 0:00:04]} O-O {[%emt 0:00:11]} 11. Bc4 {[%emt 0:04:33]} Nd7 {[%emt 0:00:13]} 12. O-O {[%emt 0:02:48]} b6 {[%emt 0:00:13]} 13. Rfe1 {[%emt 0:01:39]} Bb7 {[%emt 0:00:17]} 14. Rad1 {[%emt 0:02:43]} Rc8 {[%emt 0:00:11] D41: Queen's Gambit Declined: Semi-Tarrasch with 5 cxd5.} 15. Bb3 {[%emt 0:03:23]} Re8 {[%emt 0:00:19]} 16. Re3 {[%emt 0:07:23]} Nf6 {[%emt 0:02:17]} 17. Qe1 {[%emt 0:06:35]} Ng4 {[%emt 0:04:19]} 18. Re2 {[%emt 0:05:33][%cal Be3e2,Be2d2,Bd2d5][%mdl 32]} Ba6 {[%emt 0:01:27]} 19. Red2 {[%emt 0:03:15]} Bc4 {[%emt 0:06:53]} 20. Bxc4 {[%emt 0:09:02]} (20. h3 $5 {[%cal Rh3g4]} Nf6 21. Ne5 Bxb3 22. axb3 $11) 20... Rxc4 {[%emt 0:00:10] [#]} 21. d5 $146 {[%emt 0:05:55]} ({Predecessor:} 21. Qe2 Rc7 22. Qd3 Nf6 23. d5 exd5 24. e5 Nd7 25. Qxd5 Qe7 26. Qb5 Nf8 27. h3 {½-½ Praggnanandhaa,R (2612)-Duda,J (2760) Tata Steel-A 84th 2022 (2)}) 21... exd5 {[%emt 0:03:18]} 22. Rxd5 {[%emt 0:00:35]} Qc8 {[%emt 0:11:24]} 23. e5 {[%emt 0:17:23]} h6 {[%emt 0:18:29]} 24. h3 {[%emt 0:03:56]} Nf6 {[%emt 0:00:15]} 25. R5d4 {[%emt 0:02:19]} Rxd4 {[%emt 0:00:53]} 26. Rxd4 {[%emt 0:01:22]} Nd7 {[%emt 0:01:39][%cal Bf6d7,Bd7c5,Bc5e6,Be6f4,Bf4d3][%mdl 32]} 27. Qd2 {[%emt 0:02:46]} Nc5 {[%emt 0:03:37]} (27... Nxe5 $2 28. Nxe5 Qe6 29. Nf3 $18) 28. Nh4 {[%emt 0:07:37]} Qc7 {[%emt 0:06:19]} 29. f4 {[%emt 0:01:59]} Ne6 {[%emt 0:04:39][%cal Oc7c5] [#] Strongly threatening ...Qc5!} 30. Rd7 {[%emt 0:04:30]} Qc4 {[%emt 0:02:38]} 31. Nf3 {[%emt 0:01:45]} Nxf4 {[%emt 0:05:42]} 32. Rxa7 {[%emt 0:01:46]} Nd3 {[%emt 0:07:44]} 33. Qe3 {[%emt 0:05:19]} Rc8 {[%emt 0:04:44]} (33... Qb5 $15) 34. Kh2 {[%emt 0:01:42]} b5 {[%emt 0:12:09]} 35. Rd7 {[%emt 0:01:46]} Nc5 {[%emt 0:00:28]} 36. Rd2 {[%emt 0:00:13]} Ra8 {[%emt 0:05:49]} 37. Rb2 {[%emt 0:03:21]} Na4 {[%emt 0:01:34]} (37... Rxa2 $2 38. Rxa2 Qxa2 39. Qxc5 $18) 38. Rb3 {[%emt 0:00:21]} Rd8 {[%emt 0:00:43]} 39. a3 {[%emt 0:00:39]} Rd5 {[%emt 0:05:04]} 40. Rb4 {[%emt 0:01:38]} Qc7 {[%emt 0:01:42]} 41. Rd4 {[%emt 0:00:00]} Qc5 {[%emt 0:00:00]} 42. Rd3 {[%emt 0:07:36][%cal Bd4d3,Bd3e3,Be3e1,Be1b1,Bb1b4,Bb4a4,Ba4a6,Ba6b6][%mdl 32]} Qxe3 {[%emt 0:00:00]} 43. Rxe3 $11 {[%emt 0:00:06][%mdl 4096] Endgame KRN-KRN} Nc5 {[%emt 0:00:00]} 44. Re1 {[%emt 0:03:16]} Kf8 {[%emt 0:00:00]} 45. Rb1 {[%emt 0:01:31]} Nd7 {[%emt 0:00:00]} 46. Rb4 {[%emt 0:01:22]} Nxe5 {[%emt 0:00:00]} 47. Nxe5 {[%emt 0:00:07]} Rxe5 $15 {[%emt 0:00:00] KR-KR} 48. a4 {[%emt 0:00:05]} bxa4 {[%emt 0:00:00]} 49. Rxa4 {[%emt 0:00:02]} g5 {[%emt 0:00:00]} ({Black should try} 49... h5 $15) 50. g4 {[%emt 0:03:21]} Re3 {[%emt 0:00:00]} 51. Ra6 {[%emt 0:00:21]} Kg7 {[%emt 0:00:00]} 52. Rb6 {[%emt 0:00:34]} f6 {[%emt 0:00:00]} 53. Kg2 {[%emt 0:01:14]} Kg6 {[%emt 0:00:00]} 54. Ra6 {[%emt 0:00:40]} Rb3 {[%emt 0:00:00]} 55. Rc6 {[%emt 0:01:26]} Rb2+ {[%emt 0:00:00]} 56. Kg3 {[%emt 0:00:27]} Rb1 {[%emt 0:00:15]} 57. Kg2 {[%emt 0:00:44]} Rb4 {[%emt 0:00:07]} 58. Kg3 {[%emt 0:00:26]} Re4 {[%emt 0:00:20]} 59. Rb6 {[%emt 0:00:37]} Kf7 {[%emt 0:00:17]} 60. Ra6 {[%emt 0:02:03]} Re3+ {[%emt 0:00:47]} 61. Kg2 {[%emt 0:00:08]} Re6 {[%emt 0:00:06]} 62. Ra7+ {[%emt 0:01:50] The position is equal.} Kg6 {[%emt 0:00:08]} 63. h4 $1 {[%emt 0:01:31]} gxh4 {[%emt 0:00:22] [#] Hoping for ...Re3.} 64. Kh3 {[%emt 0:00:06]} Re4 {[%emt 0:05:33]} 65. Ra5 {[%emt 0:03:15]} Re5 {[%emt 0:01:53]} 66. Ra8 {[%emt 0:00:58]} h5 {[%emt 0:01:33]} 67. Rg8+ {[%emt 0:06:44]} Kf7 {[%emt 0:00:41]} 68. Rh8 {[%emt 0:01:22]} hxg4+ {[%emt 0:02:37]} 69. Kxg4 {[%emt 0:00:16]} Re4+ {[%emt 0:00:59]} 70. Kf5 {[%emt 0:01:19]} Ra4 {[%emt 0:05:35]} 71. Rh7+ {[%emt 0:00:43]} Kg8 {[%emt 0:00:07]} 72. Rb7 {[%emt 0:04:51]} h3 {[%emt 0:01:27]} 73. Kxf6 {[%emt 0:00:33]} h2 {[%emt 0:01:03]} 74. Rb1 $1 {[%emt 0:00:18]} Ra2 {[%emt 0:09:59] Threatens to win with ...Rf2+.} (74... Rh4 $5 75. Rh1 $8 Rh7 $11) 75. Rh1 {[%emt 0:00:16]} Kh7 {[%emt 0:01:44] ...Kh6 would be deadly.} 76. Kg5 {[%emt 0:00:21]} Kg7 {[%emt 0:00:28]} 77. Kg4 {[%emt 0:00:35]} Kg6 {[%emt 0:00:05]} 78. Kg3 {[%emt 0:00:08]} Kg5 {[%emt 0:00:03]} 79. Rxh2 {[%emt 0:00:28]} Ra3+ {[%emt 0:00:04]} 80. Kf2 {[%emt 0:00:31]} Kg4 {[%emt 0:00:07]} 81. Rh8 {[%emt 0:00:06]} Ra2+ {[%emt 0:00:04]} 82. Ke3 {[%emt 0:00:12]} Ra3+ {[%emt 0:00:04]} 83. Kd2 {[%emt 0:00:07]} Ra2+ {[%emt 0:00:05]} 84. Kd3 {[%emt 0:00:27]} Ra3+ {[%emt 0:00:05] Weighted Error Value: White=0.06 (flawless) /Black=0.08 (flawless)} 1/2-1/2

[Event "4NCL 2022-2023"]
[Site "Daventry"]
[Date "2023.02.11"]
[Round "5.45"]
[White "Greet, Andrew N"]
[Black "Freeman, Gordon"]
[Result "1-0"]
[ECO "A22"]
[WhiteElo "2408"]
[BlackElo "2094"]
[Annotator "TA"]
[PlyCount "47"]
[EventDate "2022.10.20"]
[EventType "team-tourn"]
[EventCountry "ENG"]
[SourceTitle "playchess.com"]
[Source "ChessBase"]
[SourceQuality "1"]
[TimeControl "40/6000+30:2400+30"]

{[%evp 9,47,44,45,66,102,48,68,70,81,49,59,45,68,51,74,76,103,82,117,93,143,106,85,33,33,-40,-50,-218,-217,-154,0,0,151,135,299,231,1092,1081,1131,1109]} 1. c4 {[%emt 0:00:05]} e5 {[%emt 0:00:38]} 2. Nc3 {[%emt 0:00:09]} Nf6 {[%emt 0:01:51]} 3. Nf3 {[%emt 0:00:16]} e4 {[%emt 0:04:10]} 4. Ng5 {[%emt 0:00:19]} b5 {[%emt 0:00:24]} 5. d3 {[%emt 0:01:04][%cal Bd2d3,Bd3e4,Be4e5][%mdl 32]} bxc4 {[%emt 0:11:33]} 6. dxe4 {[%emt 0:00:25] And now e5 would win. A22: English Opening: 1...e5 2 Nc3 Nf6.} (6. Ncxe4 Nc6 $11) (6. dxc4 Bb7 $11) 6... h6 {[%emt 0:04:02]} 7. Nf3 {[%emt 0:00:36]} (7. Nxf7 $16 Kxf7 8. e5) 7... Bb7 {[%emt 0:08:55]} 8. e5 {[%emt 0:02:44] White is slightly better.} Ne4 {[%emt 0:00:51]} 9. Nxe4 {[%emt 0:03:32]} Bxe4 {[%emt 0:00:14]} 10. Qd4 {[%emt 0:01:00][%csl LRc4,LRe4]} Bxf3 {[%emt 0:03:46] [#]} 11. gxf3 $146 {[%emt 0:06:22][%cal Of1g2]} ({Predecessor:} 11. exf3 Bb4+ 12. Bd2 Bxd2+ 13. Qxd2 Qe7 14. f4 Nc6 15. Bxc4 O-O 16. O-O Rad8 17. Rfe1 {1-0 Zhukova,N (2335)-Kohler,A (2121) Titled Tuesday intern op 05th Jul Late blitz 2022 (10)}) 11... Bb4+ {[%emt 0:01:12]} 12. Kd1 {[%emt 0:02:31]} Nc6 {[%emt 0:16:30]} 13. Qxc4 {[%emt 0:01:11]} Qe7 {[%emt 0:07:40]} 14. f4 {[%emt 0:04:38]} Rb8 {[%emt 0:03:53]} ({Better is} 14... Bc5) 15. Bg2 {[%emt 0:01:41]} O-O {[%emt 0:01:06]} 16. Be3 {[%emt 0:26:24]} (16. a3 $16 Bc5 17. b4 Bxf2 18. e3) 16... Na5 $14 {[%emt 0:08:45]} 17. Qa6 {[%emt 0:11:36]} (17. Qxc7 Rfc8 18. Qxa7 Qe6 $17) (17. Qd3 $1 $14) 17... d6 $1 $15 {[%emt 0:04:36]} 18. a3 $2 {[%emt 0:04:07] [#]} (18. e6 $15 Qxe6 19. Qd3) 18... dxe5 $1 $19 {[%emt 0:13:55]} 19. Kc2 {[%emt 0:03:37]} exf4 $2 {[%emt 0:04:29]} (19... Rfd8 $1 $17 {...exf4 is the strong threat.} 20. axb4 (20. Rhd1 $2 Rxd1 21. Rxd1 Bxa3 $19 {[%mdl 64] Demolition}) 20... Qxb4) 20. Bxa7 $11 {[%emt 0:01:46] Active counter play! A strong pair of Bishops.} Rfd8 {[%emt 0:06:45] [#]} 21. Rhd1 $1 $36 {[%emt 0:01:36][%mdl 2048] Keeping Black busy.} (21. axb4 Qxb4 22. Ra2 Rd2+ 23. Kc1 Nb3+ 24. Kb1 Rxb2+ {[%mdl 64] Clearance} 25. Rxb2 Nd2+ {[%mdl 64] Discovered Attack} 26. Kc2 Qxb2+ 27. Kd1 Nb3) (21. Bxb8 Rd2+ 22. Kb1 Qe5 23. Qc8+ Bf8 24. Ra2 Qxe2) 21... f3 $2 {[%emt 0:03:19]} (21... Rxd1 $2 22. Rxd1 Qe8 23. Qd3 (23. axb4 $2 Qa4+ 24. Kd2 Qxb4+ 25. Kc2 Qb3+ 26. Kd2 Qb4+ 27. Kc2 Qa4+ 28. Kd2 Rd8+ $19 {[%mdl 64] Skewer}) 23... Qa4+ 24. Kb1 $18 (24. b3 $2 Qxa3 25. Bd4 Qa2+ 26. Bb2 Re8 $19)) (21... c6 $16) 22. Bxf3 $18 {[%emt 0:01:08] Hoping for Rd5.} (22. axb4 $2 {is the wrong capture.} Qxb4 23. Rxd8+ Rxd8 $19) 22... Qg5 $2 {[%emt 0:00:48]} (22... c6 23. Rd3 (23. axb4 Qxb4 24. Rxd8+ Rxd8 $11) (23. Bxb8 Qc5+ 24. Kb1 Rxd1+ 25. Ka2 Qc2 $15) 23... Rxd3 24. exd3 Nb3 {[%mdl 64] Decoy} 25. Kxb3 Bxa3+ 26. Bxb8 Qb4+ 27. Kc2 Qxb2+ 28. Kd1 Qxa1+ 29. Ke2 Qb2+ 30. Kf1 Qxb8 31. Qxa3 g6 32. Bxc6 Qxh2) 23. axb4 {[%emt 0:01:42]} Qf5+ {[%emt 0:01:47]} 24. Rd3 {[%emt 0:00:24] Weighted Error Value: White=0.29 (precise) /Black=0.44} 1-0